Cogmind - Beta 15 @@@ ROGUE MODE // 2025.09.25 @ 17:52:21 Player: The Sun Result: Destroyed self with Rocket Launcher Performance ------------- Evolutions (1) 500 Regions Visited (4) 800 Robots Destroyed (31) 155 Value Destroyed (836) 836 Prototype IDs (0) 0 Alien Tech Used (0) 0 Bonus (0) 0 TOTAL SCORE: 2291 Bonus ------- None Cogmind --------- Core Integrity 0/400 Matter 251/300 Energy 119/125 System Corruption 0% Temperature Cool (0) Movement Walking (120) Location -9/Storage Parts ------- > --- POWER (2) -------- Light Ion Engine > --- PROPULSION (2) --- Aluminum Leg Improved Aluminum Leg > --- UTILITY (3) ------ Heat Sink Medium Storage Unit Terrain Scanner > --- WEAPON (2) ------- Rocket Launcher Axe > --- INVENTORY (10) --- Aluminum Leg Aluminum Leg Heat Sink Beam Cannon Heavy Assault Rifle Peak State ------------ > --- POWER ------------ Ion Engine Light Ion Engine > --- PROPULSION ------- Aluminum Leg Aluminum Leg > --- UTILITY ---------- Improved Heat Sink Medium Storage Unit Reaction Control System > --- WEAPON ----------- Beam Rifle Light Assault Rifle > --- INVENTORY -------- Aluminum Leg Aluminum Leg Improved Targeting Computer Weapon Shielding Beam Cannon Light Assault Rifle Rocket Launcher Datajack Heavy Hammer [Rating: 15] Favorites ----------- Power Light Ion Engine Engine Light Ion Engine Propulsion Aluminum Leg Leg Aluminum Leg Utility Medium Storage Unit Device Improved Heat Sink Storage Medium Storage Unit Protection Weapon Shielding Weapon Beam Rifle Energy Gun Beam Rifle Energy Cannon Beam Cannon Ballistic Gun Light Assault Rifle Launcher Rocket Launcher Slashing Weapon Axe Build | -11 -10 -10 -9 -9 ------- Run | Yrd Mat Min Mat Sto Slots Evolved 2 | . . . 2 . Power 1 | . . . 1 . Propulsion . | . . . . . Utility 1 | . . . 1 . Weapon . | . . . . . Parts Attached 39 | 6 9 . 12 12 Power 9 | 1 2 . 4 2 Engine 9 | 1 2 . 4 2 Core . | . . . . . Reactor . | . . . . . Propulsion 9 | 2 3 . 2 2 Treads . | . . . . . Leg 9 | 2 3 . 2 2 Wheel . | . . . . . Hover . | . . . . . Flight . | . . . . . Utility 9 | 1 2 . 2 4 Device 6 | . 1 . 1 4 Storage 2 | 1 1 . . . Processor . | . . . . . Hackware . | . . . . . Protection 1 | . . . 1 . Artifact . | . . . . . Weapon 12 | 2 2 . 4 4 Energy Gun 4 | 1 1 . 2 . Energy Cannon 1 | . . . . 1 Ballistic Gun 5 | 1 1 . 2 1 Ballistic Cannon . | . . . . . Launcher 1 | . . . . 1 Special Weapon . | . . . . . Impact Weapon . | . . . . . Slashing Weapon 1 | . . . . 1 Piercing Weapon . | . . . . . Special Melee Weapon . | . . . . . Unidentified Prototypes . | . . . . . Parts Lost 10 | . 1 . 5 4 Power 4 | . . . 2 2 Propulsion 2 | . . . 1 1 Utility 3 | . . . 2 1 Weapon 1 | . 1 . . . Highest Loss Streak 3 | . 1 . 3 2 To Critical Strikes . | . . . . . Average Backups 5 | 1 4 6 6 5 Power . | . 1 1 . . Propulsion 1 | . . 1 1 1 Utility . | . . 1 . . Weapon 3 | . 2 2 4 3 Tool/Special . | . . . . . Unused Backups 5 | . 1 . 3 1 Power . | . . . . . Propulsion 1 | . . . . 1 Utility 2 | . 1 . 1 . Weapon 1 | . . . 1 . Tool/Special 1 | . . . 1 . Average Slot Usage (%) 92 | . 94 100 92 87 Engine 18 | . 14 14 21 20 Leg 24 | . 28 28 21 21 Device 11 | . 8 14 10 12 Storage 12 | . 14 14 11 11 Protection 1 | . . . 4 . Energy Gun 10 | . 14 14 11 7 Ballistic Gun 11 | . 14 14 11 10 Slashing Weapon 1 | . . . . 3 Peak Build Rating 15 | 6 9 9 15 14 Average Rating 10 | 3 7 9 11 11 On Entrance 7 | . 6 9 9 11 Naked Turns . | . . . . . Heaviest Build 28 | 13 18 16 26 28 Greatest Support 23 | 20 20 20 20 23 Greatest Overweight (x) 1 | . . . 1 1 Average Overweight (x) . | . . . . . Largest Inventory Capacity 10 | 8 10 10 10 10 Average Capacity 9 | 7 9 10 10 10 Most Carried 10 | 5 10 7 10 10 Average Carried 5 | 1 4 6 6 5 Final Capacity 10 | 8 10 10 10 10 Final Carried 9 | 2 6 7 9 5 Class Distribution -------------------- 87% | Scavenger-Mutant 12% | Mutant Dominant Class ---------------- Scavenger-Mutant | -10/Materials Scavenger-Mutant | -10/Mines Scavenger-Mutant | -9/Materials Scavenger-Mutant | -9/Storage Resources | -11 -10 -10 -9 -9 ----------- Run | Yrd Mat Min Mat Sto Matter Collected 885 | 253 174 . 208 250 Remotely . | . . . . . Salvage Created 1120 | . 303 . 374 443 Parts 76 | . 24 . 27 25 Haulers Intercepted . | . . . . . Recyclers Shooed 3 | . . . 1 2 Parts Field Recycled . | . . . . . Retrieved Matter . | . . . . . Parts Self-Destructed . | . . . . . Prevented . | . . . . . Kills | -11 -10 -10 -9 -9 ------- Run | Yrd Mat Min Mat Sto Combat Hostiles Destroyed 26 | . 8 . 11 7 Guns 25 | . 8 . 11 6 Cannons 1 | . . . . 1 Classes Destroyed 7 | . 4 . 2 1 Worker 1 | . . . 1 . Builder 1 | . . . . 1 Recycler 2 | . 1 . . 1 Operator 1 | . 1 . . . Swarmer 8 | . 3 . 5 . Grunt 11 | . 5 . 3 3 Sentry 7 | . . . 3 4 Best Kill Streak 8 | . 4 . 8 2 Combat Bots Only 5 | . 3 . 5 2 Max Kills in Single Turn 2 | . 2 . 1 1 Gunslinging . | . . . . . Exploded . | . . . . . Melee . | . . . . . Uniques/NPCs Destroyed . | . . . . . Combat | -11 -10 -10 -9 -9 -------- Run | Yrd Mat Min Mat Sto Hostile Shots Fired 226 | . 69 . 98 59 Missed 57 | . 15 . 29 13 Hits 169 | . 54 . 69 46 Projectile 169 | . 54 . 69 46 Critical Strikes 2 | . . . 1 1 Damage Taken 2103 | . 557 . 813 733 Core 474 | . 70 . 169 235 Absorbed by Shields . | . . . . . Regen/Repaired (Parts) 68 | . . . . 68 Core Remaining (%) 86 | 100 . 72 . . Volleys Fired 113 | . 29 . 40 44 Largest 2 | . 2 . 2 2 Hottest 79 | . 60 . 79 79 Shots Fired 200 | . 57 . 80 63 Gun 197 | . 57 . 80 60 Cannon 1 | . . . . 1 Launcher 2 | . . . . 2 Special . | . . . . . Kinetic 110 | . 29 . 40 41 Thermal 88 | . 28 . 40 20 Explosive 2 | . . . . 2 Electromagnetic . | . . . . . Robot Hit Streak 23 | . 9 . 23 16 Robot Miss Streak 5 | . 4 . 5 2 Penetration Max . | . . . . . Secondary Targets 3 | . 3 . . . Max Gunslinging Chain 1 | . 1 . . . Shots Hit Robots 133 | . 35 . 51 47 Core Hits 54 | . 17 . 19 18 Critical Kills . | . . . . . Critical Parts Destroyed . | . . . . . Critical Strikes 2 | . . . 1 1 Burn 2 | . . . 1 1 Melee Attacks 1 | . . . . 1 Impact . | . . . . . Slashing 1 | . . . . 1 Piercing . | . . . . . Sneak Attacks 1 | . . . . 1 Combat Hostiles . | . . . . . Follow-up Attacks . | . . . . . Damage Inflicted 1935 | . 433 . 739 763 Guns 1821 | . 415 . 739 667 Cannons 18 | . . . . 18 Explosions 5 | . . . . 5 Melee 55 | . . . . 55 Ramming 36 | . 18 . . 18 Kinetic 1066 | . 252 . 337 477 Thermal 773 | . 163 . 402 208 Explosive 5 | . . . . 5 Electromagnetic . | . . . . . Impact . | . . . . . Slashing 55 | . . . . 55 Piercing . | . . . . . Highest Corruption . | . . . . . Average Corruption . | . . . . . Corruption Purged . | . . . . . Corruption Blocked . | . . . . . Overload Shots . | . . . . . Overflow Damage 25 | . . . . 25 Projectiles . | . . . . . Explosions . | . . . . . Melee 25 | . . . . 25 Knockbacks . | . . . . . Impact . | . . . . . Kinetic . | . . . . . Secondary . | . . . . . Self-Inflicted Damage 23 | . . . . 23 Shots 2 | . . . . 2 Rammed . | . . . . . Targets Rammed 9 | . 5 . . 4 Kicked 9 | . 5 . . 4 Crushed . | . . . . . Highest Temperature 186 | . 183 . 186 99 Average Temperature 55 | . 91 . 49 30 Received Heat Transfer 657 | . 207 . 213 237 Siege Activations . | . . . . . Martial Activations . | . . . . . Shielding Activations . | . . . . . Robots Disrupted . | . . . . . Combat Hostiles . | . . . . . Robots Corrupted . | . . . . . Combat Hostiles . | . . . . . Parts Fried . | . . . . . Impact Corruptions . | . . . . . Robots Melted . | . . . . . Combat Hostiles . | . . . . . Parts Melted 3 | . . . 2 1 Heat Transferred 2077 | . 375 . 1110 592 Parts Sabotaged . | . . . . . Parts Stolen . | . . . . . Parts Stripped . | . . . . . Power Chain Reactions . | . . . . . Alert | -11 -10 -10 -9 -9 ------- Run | Yrd Mat Min Mat Sto Maximum Alert Level . | . . . . . Low Security (%) 100 | 100 100 100 100 100 Level 1 . | . . . . . Level 2 . | . . . . . Level 3 . | . . . . . Level 4 . | . . . . . Level 5 . | . . . . . High Security . | . . . . . Max Security . | . . . . . Peak Influence 112 | . 110 4 112 50 Initial 35 | . . 4 . 35 Average 24 | . 43 . 31 14 Influence Increases 754 | . 237 . 266 251 Destroy 0b10 Robot/C 520 | . 160 . 220 140 Destroy 0b10 Robot/NC 25 | . 10 . 5 10 Destroy Leader 120 | . 40 . 40 40 Successful Hack 36 | . 27 . . 9 Disable Machine 30 | . . . . 30 Destroy Structure 8 | . . . 1 7 Lose Combat Pursuer 15 | . . . . 15 Influence Decreases 721 | . 224 13 180 304 Entered New Map 60 | . . 9 . 51 Time Decay 581 | . 214 4 130 233 Lost Part 80 | . 10 . 50 20 Squads Dispatched 3 | . 2 . 1 . Investigation . | . . . . . Extermination . | . . . . . Reinforcement 3 | . 2 . 1 . Assault . | . . . . . Garrison . | . . . . . Intercept . | . . . . . Searches Triggered . | . . . . . Construction Impeded . | . . . . . Haulers Reinforced . | . . . . . Active Scanning Responses . | . . . . . Cargo Convoy Interrupts . | . . . . . Stealth | -11 -10 -10 -9 -9 --------- Run | Yrd Mat Min Mat Sto Distress Signals 4 | . . . 2 2 Communications Jammed . | . . . . . Distress Signals . | . . . . . Times Spotted 44 | . 13 . 19 12 Peak Tracking Total 6 | . 3 . 6 3 Tactical Retreats 1 | . . . . 1 Traps | -11 -10 -10 -9 -9 ------- Run | Yrd Mat Min Mat Sto Traps Triggered 2 | . . . . 2 Indirectly . | . . . . . Trap Hack Attempts . | . . . . . Triggered . | . . . . . Disarmed . | . . . . . Reprogrammed . | . . . . . Reused . | . . . . . Traps Extracted . | . . . . . Installed . | . . . . . Triggered . | . . . . . Machines | -11 -10 -10 -9 -9 ---------- Run | Yrd Mat Min Mat Sto Machines Disabled 2 | . . . . 2 Max in Single Turn 1 | . . . . 1 Machines Repaired . | . . . . . Machines Dismantled . | . . . . . Machines Sabotaged . | . . . . . Overloaded Fab Kills . | . . . . . Hacking | -11 -10 -10 -9 -9 --------- Run | Yrd Mat Min Mat Sto Machines Accessed 12 | . 6 . 1 5 Terminals 8 | . 4 . 1 3 Fabricators . | . . . . . Repair Stations 1 | . . . . 1 Recycling Units 3 | . 2 . . 1 Scanalyzers . | . . . . . Garrison Access . | . . . . . Total Hacks 33 | . 19 . 2 12 Successful 22 | . 13 . 2 7 Failed 11 | . 6 . . 5 Catastrophic 2 | . 1 . . 1 Database Lockouts . | . . . . . Manual 1 | . . . . 1 Terminals 26 | . 15 . 2 9 Fabricators . | . . . . . Repair Stations 2 | . . . . 2 Recycling Units 5 | . 4 . . 1 Scanalyzers . | . . . . . Garrison Access . | . . . . . Terminal Hacks 16 | . 10 . 2 4 Record 4 | . 1 . 2 1 Robot Analysis 2 | . 2 . . . Emergency Access Points 1 | . 1 . . . Terminal Index 1 | . . . . 1 Alert Level 1 | . 1 . . . Locate Traps 2 | . 2 . . . Dispatch Records 1 | . 1 . . . Maintenance Status 2 | . 1 . . 1 Transport Status 1 | . 1 . . . Recall Extermination 1 | . . . . 1 Fabricator Hacks . | . . . . . Repair Station Hacks 2 | . . . . 2 Scan Component 1 | . . . . 1 Repair 1 | . . . . 1 Recycling Unit Hacks 4 | . 3 . . 1 Process 1 | . 1 . . . Report Inventory 3 | . 2 . . 1 Scanalyzer . | . . . . . Garrison Access Hacks . | . . . . . Unauthorized Hacks . | . . . . . Terminals . | . . . . . Fabricators . | . . . . . Repair Stations . | . . . . . Recycling Units . | . . . . . Scanalyzers . | . . . . . Garrison Access . | . . . . . Data Cores Recovered . | . . . . . Used . | . . . . . Hacking Detections 8 | . 3 . . 5 Full Trace Events . | . . . . . Feedback Events . | . . . . . Feedback Blocked . | . . . . . Robot Schematics Acquired . | . . . . . Robots Built . | . . . . . Authchips . | . . . . . Time . | . . . . . Total Robot Build Rating . | . . . . . Part Schematics Acquired . | . . . . . Parts Built . | . . . . . Authchips . | . . . . . Time . | . . . . . Total Part Build Rating . | . . . . . Parts Repaired 1 | . . . . 1 Time 26 | . . . . 26 Parts Recycled . | . . . . . Recycled Matter 88 | . 88 . . . Retrieved Matter . | . . . . . Retrieved Components . | . . . . . Parts Scanalyzed . | . . . . . Part Schematics Acquired . | . . . . . Parts Damaged . | . . . . . Bothacking | -11 -10 -10 -9 -9 ------------ Run | Yrd Mat Min Mat Sto Used RIF Installer . | . . . . . Robots Hacked . | . . . . . Non-combat . | . . . . . Combat . | . . . . . Robot Hacks Applied . | . . . . . Relay Couplers Released . | . . . . . Fabnet Peak Effective % . | . . . . . Robots Rewired . | . . . . . Allies Hacked . | . . . . . Hacks Repelled . | . . . . . Allies | -11 -10 -10 -9 -9 -------- Run | Yrd Mat Min Mat Sto Total Allies . | . . . . . Largest Group . | . . . . . Highest-Rated Group . | . . . . . Highest-Rated Ally . | . . . . . Total Orders . | . . . . . Ally Attacks . | . . . . . Total Damage . | . . . . . Kills . | . . . . . Allies Corrupted . | . . . . . Allies Melted . | . . . . . Intel | -11 -10 -10 -9 -9 ------- Run | Yrd Mat Min Mat Sto Active Infowar (turns) 128 | . . . . 128 Terrain 128 | . . . . 128 Robot Analysis Total 2 | . 2 . . . Derelict Logs Recovered 2 | . . 2 . . Drone Launches . | . . . . . Drone Recoveries . | . . . . . Exploration | -11 -10 -10 -9 -9 ------------- Run | Yrd Mat Min Mat Sto Turns Passed 2291 | 65 598 214 590 824 Spaces Moved 1171 | 51 383 173 222 342 Core 13 | 13 . . . . Treads . | . . . . . Legs 1158 | 38 383 173 222 342 Wheels . | . . . . . Hover . | . . . . . Flight . | . . . . . Fastest Speed 50 | 50 120 120 120 120 Average Speed 149 | 102 120 120 189 179 Slowest Speed 190 | 120 120 120 190 190 Overloaded Moves . | . . . . . Propulsion Burnouts . | . . . . . Robots Hopped . | . . . . . Potential Cave-ins . | . . . . . Cave-ins Triggered . | . . . . . Exploration Rate (%) 33 | 5 42 54 21 44 Regions Visited 4 Branch Regions 2 Pre-discovered Areas 2 | . . 2 . . Known Exits Taken . | . . . . . Unknown Exits Taken 4 | 1 1 1 1 . Scrap Searched . | . . . . . Spaces Dug 1 | . . . . 1 Terrain Destroyed 7 | . . . . 7 Melee . | . . . . . Projectile . | . . . . . AOE 7 | . . . . 7 Terrain Rammed . | . . . . . Walls Destroyed . | . . . . . Machines Disabled . | . . . . . Actions | -11 -10 -10 -9 -9 --------- Run | Yrd Mat Min Mat Sto Total 1513 | 64 466 179 314 490 Wait 96 | . 15 6 19 56 Move 1167 | 50 382 172 221 342 Hop . | . . . . . Pick Up 49 | 8 15 1 12 13 Fast Attach . | . . . . . Attach 28 | 6 3 . 7 12 Detach 7 | . 1 . 2 4 Swap 20 | . 7 . 8 5 Drop 23 | . 9 . 5 9 Fire 113 | . 29 . 40 44 Melee 1 | . . . . 1 Ram . | . . . . . Kick 9 | . 5 . . 4 Crush . | . . . . . Escape Stasis . | . . . . . Rewire . | . . . . . Trap . | . . . . . Miscellaneous . | . . . . . Route ------- -11/Scrapyard -10/Materials -10/Mines -9/Materials (discovered 2 exits: [*Mat] / *Sto) -9/Storage (discovered 1 exit: [Rec]) History --------- Turn | Location | Event 31 | -11/Scrapyard | Discovered new exit (range 16) 66 | -11/Scrapyard | Entered Materials 556 | -10/Materials | Discovered new exit (range 6) 568 | -10/Materials | Build established: Scavenger-Mutant 664 | -10/Materials | Entered Mines 682 | -10/Mines | Learned location of Zion (-7) 692 | -10/Mines | Received a Rocket Launcher from a helpful Derelict 866 | -10/Mines | Discovered new exit (range 11) 878 | -10/Mines | Entered Materials 878 | -9/Materials | Evolved 2 slots: Power x1, Utility x1 1239 | -9/Materials | Discovered new exit (range 15) 1365 | -9/Materials | Lost 3 parts (2p1n) 1461 | -9/Materials | Discovered new exit (range 8) 1468 | -9/Materials | Entered Storage 1622 | -9/Storage | Core integrity fell below 50% 1674 | -9/Storage | Repaired Aluminum Leg 2218 | -9/Storage | Core integrity fell below 20% 2282 | -9/Storage | Discovered new exit (range 8) 2292 | -9/Storage | Destroyed self with Rocket Launcher Last Messages --------------- >>Recall(Extermination) Establishing remote squad link... No tasked extermination squads found. Triggered Explosive Trap. An explosion rips through the floor. U-05 Engineer builds a Wall. U-05 Engineer lays Concrete. Connecting with Door Terminal... U-05 Engineer builds a Door. U-05 Engineer builds a Wall. U-05 Engineer lays Concrete. EXIT=FOUND U-05 Engineer builds a Wall. Connecting with Door Terminal... U-05 Engineer lays Concrete. U-05 Engineer builds a Wall. R-06 Scavenger collects Imp. Ion Engine. U-05 Engineer lays Concrete. Door Terminal disabled. K-01 Serf cleans the Component Storage. Map ----- +----------------------------------------------------+ | | | | | | | | | | | | | | | | | | | ????????????????????????????????????????? | | ????????????????????????????????????????? | | ?????????????????????????????????#??????? | | ?????########???????????????????????????? | | ?????# #???######??##??????????????? | | ?????# """ #???# #??????????????????? | | ?????# """ #???# #??????????????????? | | ?????# """ #???# #????#??#??????????? | | ?????# #???# #??????????????????? | | ####?#[= ###?# #??